[Event "Mitropa Cup Women 2022"]
[Site "Corte"]
[Date "2022.05.08"]
[Round "9.1"]
[White "Gaal, Zsoka"]
[Black "Zimina, Olga"]
[Result "0-1"]
[ECO "E62"]
[WhiteElo "2323"]
[BlackElo "2336"]
[Annotator "TA"]
[PlyCount "68"]
[EventDate "2022.04.30"]
[EventType "team-tourn"]
[EventCountry "FRA"]
[SourceTitle "playchess.com"]
[Source "ChessBase"]
[SourceQuality "1"]
[WhiteTeam "Hungary"]
[BlackTeam "Italy"]
[WhiteTeamCountry "HUN"]
[BlackTeamCountry "ITA"]
[TimeControl "40/5400+30:1800+30"]

{[%evp 19,68,0,0,-20,-35,-11,-25,-138,-125,-147,-146,-136,-143,-143,-136,-201,-212,-187,-161,-179,-168,-162,-152,-174,-172,-240,-248,-288,-309,-375,-279,-262,-243,-243,-206,-221,-233,-214,-211,-206,-137,-294,-219,-388,-394,-356,-366,-857,-869,-777,-756]} 1. Nf3 {[%emt 0:00:14]} Nf6 {[%emt 0:00:03]} 2. c4 {[%emt 0:00:25]} g6 {[%emt 0:06:00]} 3. g3 {[%emt 0:00:30]} Bg7 {[%emt 0:00:06]} 4. Bg2 {[%emt 0:00:09]} d6 {[%emt 0:00:07]} 5. d4 {[%emt 0:00:17]} O-O {[%emt 0:00:12]} 6. Nc3 {[%emt 0:00:16]} Nc6 {[%emt 0:01:17]} 7. O-O {[%emt 0:00:17]} e5 {[%emt 0:00:39]} 8. dxe5 {[%emt 0:05:06]} dxe5 {[%emt 0:01:03]} 9. Qxd8 {[%emt 0:00:37]} Rxd8 {[%emt 0:00:28]} 10. Bg5 {[%emt 0:00:35]} Be6 {[%emt 0:01:10]} 11. Rac1 {[%emt 0:11:26] E62: King's Indian: Fianchetto: 6...c6 and Panno Variation (6...Nc6) without ...a6.} h6 {[%emt 0:03:19]} 12. Bxf6 {[%emt 0:00:59]} Bxf6 {[%emt 0:00:01][%cal Bg7f6,Bf6e7,Be7a3][%mdl 32]} 13. Ne4 {[%emt 0:04:41]} (13. b3 $11 {keeps the balance.}) 13... Be7 $17 {[%emt 0:00:38]} 14. b3 {[%emt 0:13:09]} f5 {[%emt 0:02:50]} 15. Nc3 {[%emt 0:00:07][%cal Oc3d5]} e4 {[%emt 0:00:40]} 16. Ne1 {[%emt 0:01:11] [#]} Ba3 $146 {[%emt 0:05:49][%mdl 2048] White is under strong pressure. Black is more active.} ({Predecessor:} 16... a6 17. Bh3 Kf7 18. Ng2 g5 19. Ne3 Nd4 20. Rcd1 c6 21. Rxd4 Rxd4 22. Bxf5 Bxf5 23. Nxf5 {0-1 (44) Montoya Diaz,C (2136)-Chaucanes,L (2061) Medellin 2015}) 17. Rd1 {[%emt 0:24:19]} (17. Rb1 $17) 17... Rxd1 $19 {[%emt 0:11:46]} 18. Nxd1 {[%emt 0:00:08]} Nd4 {[%emt 0:12:03]} 19. f3 {[%emt 0:06:55]} Nxe2+ {[%emt 0:01:36]} 20. Kh1 {[%emt 0:00:18]} f4 {[%emt 0:10:01][%cal Bf5f4,Bf4g3][%mdl 32] [#] Strongly threatening ...Rd8.} 21. Nc2 {[%emt 0:04:11]} Bc5 {[%emt 0:17:10] aiming for ...Rd8. A strong pair of Bishops.} 22. fxe4 {[%emt 0:01:44]} (22. gxf4 {is a better defense.} Rf8 23. fxe4) 22... fxg3 {[%emt 0:00:37]} 23. Bf3 {[%emt 0:06:25] [#]} Bh3 $1 {[%emt 0:03:24]} 24. Re1 {[%emt 0:00:16]} (24. Bg2 Bxg2+) 24... Rf8 {[%emt 0:07:09]} 25. Bg2 {[%emt 0:00:59]} Bxg2+ {[%emt 0:01:28]} 26. Kxg2 {[%emt 0:00:03]} Nf4+ {[%emt 0:00:08]} 27. Kxg3 {[%emt 0:01:09]} Nd3 {[%emt 0:00:06]} 28. Rh1 {[%emt 0:04:42]} Bd6+ {[%emt 0:03:08]} 29. Kg2 {[%emt 0:00:03]} Rf4 {[%emt 0:00:32]} 30. Rf1 $2 {[%emt 0:02:51]} (30. Ne1 $17 Nc5 31. Nf2) 30... Rh4 {[%emt 0:00:59]} ({Don't blunder} 30... Rxe4 $2 31. Nde3 $19) 31. Nde3 $2 {[%emt 0:02:39]} (31. Rh1) 31... Rxh2+ {[%emt 0:00:14]} 32. Kg1 {[%emt 0:00:09]} Rd2 {[%emt 0:05:46] And now ...Bh2+ would win.} 33. Rd1 $2 {[%emt 0:02:00]} (33. Rf3) 33... Bh2+ {[%emt 0:00:41]} 34. Kh1 {[%emt 0:00:37]} Nf2+ {[%emt 0:00:09] White did not feel at home in the position after the opening.  Weighted Error Value: White=0.56/Black=0.15 (very precise)} 0-1

[Event "Mitropa Cup Women 2022"]
[Site "Corte"]
[Date "2022.05.08"]
[Round "9.1"]
[White "Movsesian, Julia"]
[Black "Cvitan, Ena"]
[Result "1-0"]
[ECO "B12"]
[WhiteElo "2313"]
[BlackElo "2251"]
[Annotator "TA"]
[PlyCount "93"]
[EventDate "2022.04.30"]
[EventType "team-tourn"]
[EventCountry "FRA"]
[SourceTitle "playchess.com"]
[Source "ChessBase"]
[SourceQuality "1"]
[WhiteTeam "Czech Republic"]
[BlackTeam "Croatia"]
[WhiteTeamCountry "CZE"]
[BlackTeamCountry "CRO"]
[TimeControl "40/5400+30:1800+30"]

{[%evp 9,93,10,17,7,13,4,42,4,4,4,5,11,4,4,20,18,56,59,61,55,85,72,75,76,89,88,135,100,114,116,123,116,121,116,128,111,114,120,119,116,145,145,145,145,145,132,144,134,148,155,208,208,339,339,339,339,350,350,365,330,433,433,433,431,354,339,1405,1529,932,1518,1447,1402,1265,989,838,625,6737,914,29965,29968,29969,29969,12815,10649,5580,4627]} 1. e4 {[%emt 0:00:06]} c6 {[%emt 0:00:19]} 2. d4 {[%emt 0:00:13]} d5 {[%emt 0:00:10]} 3. e5 {[%emt 0:00:10]} Bf5 {[%emt 0:00:18]} 4. Nd2 {[%emt 0:00:07]} e6 {[%emt 0:02:47]} 5. Nb3 {[%emt 0:00:38]} c5 {[%emt 0:04:07]} 6. Bb5+ {[%emt 0:00:46] B12: Caro-Kann: Advance Variation.} (6. dxc5 {is more complex.} Bxc5 7. Nxc5 Qa5+ 8. c3) 6... Nc6 {[%emt 0:04:41]} 7. dxc5 {[%emt 0:00:23]} Bxc5 {[%emt 0:06:14][%cal Og8e7]} 8. Bxc6+ {[%emt 0:00:24] White is slightly better.} (8. a4 $5 {[%cal Rb3c5]} Bf8 9. Nf3 $11) 8... bxc6 {[%emt 0:01:23]} 9. Nxc5 {[%emt 0:00:09]} Qa5+ {[%emt 0:00:07]} 10. c3 {[%emt 0:00:05]} Qxc5 {[%emt 0:00:06]} 11. Nf3 {[%emt 0:00:04]} Qc4 {[%emt 0:06:06] [#]} 12. Qb3 $146 {[%emt 0:08:55] aiming for Qb7.} ({Predecessor:} 12. Be3 Ne7 13. Qb3 Qa6 14. Bc5 Kd7 15. Bxe7 Kxe7 16. Qb4+ c5 17. Qxc5+ Kd7 18. Nd2 {1-0 (48) Fedoseev,V (2704)-Bluebaum,M (2642) Chess.com INT 2022}) 12... Qxb3 {[%emt 0:11:59]} 13. axb3 {[%emt 0:00:02]} Ne7 {[%emt 0:00:46]} 14. Be3 {[%emt 0:01:22]} Kd7 {[%emt 0:02:36] Black is on the road to losing.} 15. Kd2 {[%emt 0:01:19] White is more active.} a5 {[%emt 0:02:02]} 16. Ra3 {[%emt 0:01:37]} Rhb8 {[%emt 0:04:52]} 17. Rha1 {[%emt 0:00:19]} Be4 {[%emt 0:03:41]} (17... Ng6 $142) 18. Ne1 {[%emt 0:04:32]} f6 {[%emt 0:04:29]} 19. exf6 {[%emt 0:02:43]} gxf6 {[%emt 0:00:06][%cal Oc6c5]} 20. b4 {[%emt 0:00:03]} Nf5 {[%emt 0:06:33][%cal Od5d4]} 21. Bc5 {[%emt 0:12:36] Against d4} Nd6 {[%emt 0:00:56] ...Nc4+ is the strong threat.} 22. Bxd6 {[%emt 0:00:28]} Kxd6 {[%emt 0:00:02]} 23. Rxa5 {[%emt 0:00:09]} Rxa5 {[%emt 0:00:07]} 24. Rxa5 $16 {[%emt 0:00:03][%mdl 4096] Endgame KRB-KRN} Rb7 {[%emt 0:02:56]} 25. g3 {[%emt 0:09:45]} e5 {[%emt 0:02:24]} 26. Ra6 {[%emt 0:05:28]} h5 {[%emt 0:05:35]} 27. Nd3 {[%emt 0:06:31]} Bxd3 {[%emt 0:00:48]} 28. Kxd3 {[%emt 0:00:01] KR-KR} Rb8 {[%emt 0:01:08]} 29. h4 {[%emt 0:07:11]} f5 {[%emt 0:06:37]} (29... Kd7 $16 30. Kc2 Rh8) 30. Ra7 $18 {[%emt 0:05:12] Strongly threatening Rh7.} Rf8 {[%emt 0:00:26] [#]} (30... Rh8 {was necessary.} 31. Rg7 Rh6) 31. Rh7 $1 {[%emt 0:03:17]} f4 {[%emt 0:00:58]} 32. Rh6+ {[%emt 0:00:40]} ({Weaker is} 32. Rxh5 fxg3 33. fxg3 (33. Rh6+ Kd7 $16) 33... Rf3+ 34. Ke2 Rxg3 $16) 32... Kd7 {[%emt 0:02:02]} 33. Rxh5 {[%emt 0:13:15]} fxg3 {[%emt 0:00:12]} 34. fxg3 {[%emt 0:00:04]} Rf3+ {[%emt 0:00:11]} 35. Ke2 {[%emt 0:00:14]} Rxg3 {[%emt 0:01:04]} 36. Rxe5 {[%emt 0:00:19]} Rg2+ {[%emt 0:03:22]} 37. Kd3 {[%emt 0:00:05]} Rxb2 $2 {[%emt 0:04:15]} (37... Rh2 38. h5 Kd6) 38. Re2 {[%emt 0:00:10]} Rb1 {[%emt 0:00:03] [#]} 39. Rh2 $1 {[%emt 0:00:12]} Rd1+ {[%emt 0:01:02]} 40. Kc2 {[%emt 0:00:14]} Ra1 {[%emt 0:00:14]} 41. Kb2 {[%emt 0:30:06]} Ra8 {[%emt 0:30:10]} 42. h5 {[%emt 0:01:34][%cal Bh4h5,Bh5h6,Bh6h7][%mdl 32] Hoping for h6.} c5 {[%emt 0:04:28]} 43. bxc5 {[%emt 0:01:33]} (43. h6 $142 Rd8 44. h7) 43... Kc6 {[%emt 0:00:08]} 44. h6 {[%emt 0:00:13]} Kxc5 {[%emt 0:00:15]} 45. h7 {[%emt 0:00:07]} Rh8 {[%emt 0:00:10]} 46. Rh4 {[%emt 0:00:08] White threatens Kb3 and mate.} Kd6 {[%emt 0:00:41]} 47. Kc2 {[%emt 0:00:13] Weighted Error Value: White=0.06 (flawless) /Black=0.42} 1-0

[Event "Mitropa Cup Women 2022"]
[Site "Corte"]
[Date "2022.05.08"]
[Round "9.1"]
[White "Borosova, Zuzana"]
[Black "Heinatz, Gundula"]
[Result "0-1"]
[ECO "B12"]
[WhiteElo "2265"]
[BlackElo "2117"]
[Annotator "TA"]
[PlyCount "86"]
[EventDate "2022.04.30"]
[EventType "team-tourn"]
[EventCountry "FRA"]
[SourceTitle "playchess.com"]
[Source "ChessBase"]
[SourceQuality "1"]
[WhiteTeam "Slovakia"]
[BlackTeam "Switzerland"]
[WhiteTeamCountry "SVK"]
[BlackTeamCountry "SUI"]
[TimeControl "40/5400+30:1800+30"]

{[%evp 9,86,-20,-6,-10,0,0,0,-30,0,-7,-9,-32,-10,-43,-35,-67,-26,-81,-87,-134,-74,-90,-86,-137,-129,-163,-158,-156,-153,-149,-152,-162,-155,-184,-170,-200,-158,-222,-185,-272,-272,-257,-243,-243,-171,-175,-123,-85,-97,-216,0,0,0,0,233,56,431,437,516,502,903,-79,-93,-51,0,-19,0,-955,-942,-29986,-29987,-29988,-29987,-29989,-29988,-29991,-29990,-29990,-29991]} 1. e4 {[%emt 0:00:04]} c6 {[%emt 0:00:06]} 2. d4 {[%emt 0:00:13]} d5 {[%emt 0:00:05]} 3. e5 {[%emt 0:00:08]} Bf5 {[%emt 0:00:07]} 4. h4 {[%emt 0:00:19]} c5 {[%emt 0:03:03]} 5. g4 {[%emt 0:39:36]} Bc8 {[%emt 0:00:57] [#]} 6. Nc3 $146 {[%emt 0:04:33] B12: Caro-Kann: Advance Variation.} ({Predecessor:} 6. dxc5 Nc6 7. Bf4 e6 8. Nf3 Bxc5 9. Bd3 Nge7 10. Nbd2 f6 11. Qe2 Ng6 12. Bxg6+ hxg6 {1-0 (46) Hector,J (2492)-Hove,E (2280) Allerod 2019}) 6... cxd4 {[%emt 0:07:24]} 7. Qxd4 {[%emt 0:01:56]} Nc6 {[%emt 0:01:45]} 8. Bb5 {[%emt 0:02:31] The position is equal.} a6 {[%emt 0:02:27]} 9. Bxc6+ {[%emt 0:00:48]} bxc6 {[%emt 0:00:04]} 10. Na4 {[%emt 0:09:44]} e6 {[%emt 0:04:37]} 11. Be3 {[%emt 0:04:23]} Rb8 {[%emt 0:09:01]} 12. b3 {[%emt 0:04:40]} Qc7 {[%emt 0:10:53]} 13. c3 {[%emt 0:05:08]} (13. Nf3 $11 {remains equal.}) 13... h5 $17 {[%emt 0:01:12]} 14. Ne2 {[%emt 0:16:06]} (14. g5 $142) 14... Ne7 {[%emt 0:00:45]} (14... hxg4 $142 15. O-O-O Nh6) 15. g5 {[%emt 0:02:45]} Nf5 {[%emt 0:02:00]} 16. Qd2 {[%emt 0:01:53]} (16. Qf4 $142) 16... c5 $1 {[%emt 0:06:06]} ({Resist} 16... Qxe5 17. Bf4 Qe4 18. f3 Qxf3 19. Rf1 $16) 17. f4 {[%emt 0:01:17]} Bd7 {[%emt 0:01:20]} 18. Nb2 {[%emt 0:00:16]} Bc6 {[%emt 0:08:33][%cal Od5d4] White must now prevent ...d4!} 19. Rh3 {[%emt 0:00:25]} a5 {[%emt 0:02:03] Black is more active.} 20. Bf2 {[%emt 0:00:37]} Be7 {[%emt 0:03:36]} 21. Ng3 {[%emt 0:01:48]} Nxg3 {[%emt 0:03:03]} 22. Rxg3 {[%emt 0:00:21]} c4 {[%emt 0:03:38][%cal Bc5c4,Bc4b3][%mdl 32] Inhibits Nd3.} 23. Bd4 {[%emt 0:01:48]} (23. Qc2 $17) 23... O-O {[%emt 0:01:40]} 24. Qf2 {[%emt 0:00:28]} (24. bxc4 $142 Ba3 25. Nd1) 24... cxb3 $19 {[%emt 0:01:35]} 25. a4 {[%emt 0:00:28]} Bd7 {[%emt 0:03:24]} 26. Kd2 {[%emt 0:00:35]} Rfc8 {[%emt 0:00:52]} 27. g6 {[%emt 0:00:29] Strongly threatening gxf7+.} fxg6 {[%emt 0:06:36]} (27... Rf8 $19 28. gxf7+ Rxf7) 28. Rxg6 $17 {[%emt 0:00:13]} Be8 {[%emt 0:01:12]} 29. Rxe6 {[%emt 0:00:49] [#]} (29. Rxg7+ $17 {was the only chance.} Kxg7 30. Rg1+ Bg5 31. Rxg5+ Kh8 32. f5) 29... Bf7 $2 {[%emt 0:03:45]} (29... Bb4 $1 $19 {[%cal Rb4c3][%mdl 512]} 30. Rxe8+ (30. Qe3 Bd7) 30... Rxe8) 30. Rxe7 $11 {[%emt 0:00:05]} Qxe7 {[%emt 0:00:08] Dancing on a razor blade.} 31. f5 {[%emt 0:00:02] Prevents Bg6.} Rc6 {[%emt 0:07:05]} (31... Rb7 $11 {and Black has nothing to worry.}) 32. Rg1 $2 {[%emt 0:00:19]} (32. e6 $18 Bg6 33. Rg1 (33. fxg6 Rxe6 34. Qf3 Qf8 $11)) 32... g6 $2 {[%emt 0:03:42][%mdl 8192]} (32... Qa3 $14 33. Kd3 Rb7) 33. e6 $18 {[%emt 0:00:17] Threatens to win with Qf4.} Be8 {[%emt 0:00:12][%cal Ob8b4]} 34. Qf4 {[%emt 0:00:58] White threatens Qe5 and mate.} Rb4 {[%emt 0:03:20]} (34... Qc7 $142 35. Qxc7 Rxc7) 35. Qe5 $2 {[%emt 0:00:59] [#]} ({White must play} 35. cxb4 $18 {Intending Qe5 and mate.} Rc2+ 36. Kd1) 35... Rxd4+ $1 $17 {[%emt 0:00:17]} 36. Qxd4 {[%emt 0:00:01]} Qd6 {[%emt 0:01:20]} (36... Qf8 $15 37. Rg5 (37. fxg6 Rxe6 38. Nd3 Qd6 $17) 37... Qa3) 37. Rg2 {[%emt 0:00:25]} Rc7 {[%emt 0:00:30]} 38. Qe3 $2 {[%emt 0:01:24][%mdl 8192]} (38. Ke3 $11) 38... d4 $1 $19 {[%emt 0:00:09][%cal Bd5d4,Bd4c3,Bc3b2][%mdl 32]} 39. Qh6 {[%emt 0:00:36]} dxc3+ {[%emt 0:00:09] Black mates.} 40. Ke1 {[%emt 0:00:29]} Qe5+ {[%emt 0:00:27]} 41. Kf1 {[%emt 0:05:43]} Qxf5+ {[%emt 0:04:31]} 42. Rf2 {[%emt 0:02:50] [#]} Qxf2+ $3 {[%emt 0:01:11][%mdl 512]} 43. Kxf2 {[%emt 0:00:07]} cxb2 {[%emt 0:00:07] Weighted Error Value: White=0.76/Black=0.48} 0-1

[Event "Mitropa Cup Women 2022"]
[Site "Corte"]
[Date "2022.05.08"]
[Round "9.2"]
[White "Brunello, Marina"]
[Black "Terbe, Zsuzsanna"]
[Result "1-0"]
[ECO "C50"]
[WhiteElo "2349"]
[BlackElo "2183"]
[Annotator "TA"]
[PlyCount "117"]
[EventDate "2022.04.30"]
[EventType "team-tourn"]
[EventCountry "FRA"]
[SourceTitle "playchess.com"]
[Source "ChessBase"]
[SourceQuality "1"]
[WhiteTeam "Italy"]
[BlackTeam "Hungary"]
[WhiteTeamCountry "ITA"]
[BlackTeamCountry "HUN"]
[TimeControl "40/5400+30:1800+30"]

{[%evp 13,117,17,20,-10,14,0,19,-15,28,3,56,36,32,16,29,8,8,12,0,10,0,-12,0,-22,-17,-18,-13,-27,147,144,142,142,143,142,137,135,140,140,140,153,161,132,141,140,139,145,138,137,138,133,184,140,314,324,324,324,320,312,322,316,311,251,299,246,348,150,191,0,313,180,172,87,106,67,195,196,216,216,216,216,209,192,284,231,231,231,225,227,223,223,223,223,209,209,206,183,688,626,751,959,1614,1316,29967,29957,29971,29969]} 1. e4 {[%emt 0:02:07]} e5 {[%emt 0:00:07]} 2. Nf3 {[%emt 0:00:20]} Nc6 {[%emt 0:00:06]} 3. Bc4 {[%emt 0:00:04]} Bc5 {[%emt 0:00:05]} 4. d3 {[%emt 0:01:05]} Nf6 {[%emt 0:00:31]} 5. O-O {[%emt 0:00:27]} O-O {[%emt 0:00:20]} 6. Bb3 {[%emt 0:03:36]} a6 {[%emt 0:07:40]} 7. c3 {[%emt 0:02:14]} d6 {[%emt 0:00:31]} 8. Be3 {[%emt 0:00:23] C54: Giuoco Piano: 4 c3 Nf6, main lines with 5 d4 and 5 d3.} Ba7 {[%emt 0:08:24]} 9. Nbd2 {[%emt 0:00:44]} Re8 {[%emt 0:03:03]} 10. Re1 {[%emt 0:01:09] The position is equal.} Be6 {[%emt 0:06:04] [#]} 11. Bc2 $146 {[%emt 0:00:28]} ({Predecessor:} 11. Bxe6 fxe6 12. Bxa7 Rxa7 13. Qb3 Qd7 14. a4 b6 15. d4 exd4 16. cxd4 d5 17. Rad1 {1-0 (34) Ramos Aldoradin,J (2126)-Pablos Tenrero,R (1884) Madrid 2010}) 11... d5 {[%emt 0:01:43]} ({Better is} 11... Bxe3 $11 12. fxe3 b5) 12. exd5 {[%emt 0:09:33]} Bxd5 {[%emt 0:00:20]} 13. Bg5 {[%emt 0:00:43]} Qd6 {[%emt 0:07:42]} 14. Ne4 {[%emt 0:03:39]} Nxe4 {[%emt 0:04:14]} 15. dxe4 {[%emt 0:00:12]} Be6 {[%emt 0:00:15]} 16. Qxd6 {[%emt 0:05:59]} cxd6 {[%emt 0:00:09]} 17. Rad1 {[%emt 0:00:03][%cal Ba1d1,Bd1d3,Bd3f3][%mdl 32]} f6 {[%emt 0:04:35]} 18. Bc1 {[%emt 0:07:33]} Red8 {[%emt 0:03:02]} 19. Bb3 {[%emt 0:04:19]} Kf7 {[%emt 0:02:17]} 20. Rd3 {[%emt 0:02:20]} Rd7 $2 {[%emt 0:01:28] [#]} (20... Bxb3 $11 21. axb3 Ne7) 21. Ng5+ $1 $16 {[%emt 0:01:04][%mdl 512]} fxg5 {[%emt 0:03:31]} 22. Rf3+ {[%emt 0:00:07][%mdl 64] Deflection} Ke8 {[%emt 0:01:37]} 23. Bxe6 {[%emt 0:00:06]} Re7 {[%emt 0:00:17]} 24. Bg4 {[%emt 0:02:14] This bishop pair is nice.} h6 {[%emt 0:04:18]} 25. Rd1 {[%emt 0:00:27]} Rd8 {[%emt 0:01:23]} 26. Rfd3 {[%emt 0:00:11]} Bb8 {[%emt 0:00:15]} 27. Be3 {[%emt 0:02:24]} Bc7 {[%emt 0:00:51]} 28. g3 {[%emt 0:04:17]} Kf8 {[%emt 0:05:11]} 29. b4 {[%emt 0:07:19][%cal Bb2b4,Bb4b5][%mdl 32]} Rf7 {[%emt 0:04:37]} 30. a4 {[%emt 0:04:12][%cal Ba2a4,Ba4b5,Bb5b6][%mdl 32]} Ke7 {[%emt 0:04:54]} 31. Rd5 {[%emt 0:03:03] aiming for b5.} Kf8 {[%emt 0:08:39]} (31... Nb8 $16 32. a5 Nd7) 32. R5d2 {[%emt 0:09:47]} Ra8 $2 {[%emt 0:07:54] [#]} (32... Rf6 $16 {was necessary.} 33. Be2 Rc8) 33. b5 $1 $18 {[%emt 0:04:05]} axb5 {[%emt 0:00:20]} 34. axb5 {[%emt 0:00:05]} Nd8 {[%emt 0:03:39]} 35. b6 {[%emt 0:03:17]} Bb8 {[%emt 0:00:08]} 36. c4 {[%emt 0:01:18]} Ke7 {[%emt 0:05:17]} 37. Bc8 {[%emt 0:12:25]} Ra4 {[%emt 0:02:41]} 38. Rc2 {[%emt 0:00:04]} Ke8 {[%emt 0:00:45]} (38... Ne6 $142 39. Bxb7 Rb4) 39. Bf5 {[%emt 0:01:09]} (39. c5 $18 dxc5 40. Bf5 Rxf5 41. exf5) 39... Rf6 {[%emt 0:00:18]} 40. Bc8 {[%emt 0:01:40]} (40. c5 $142) 40... Rf7 $1 {[%emt 0:00:41]} 41. h3 {[%emt 0:05:06]} (41. c5 $142 dxc5 42. Bf5 Rxf5 43. exf5) 41... Nc6 {[%emt 0:05:24]} 42. Be6 {[%emt 0:00:37]} (42. Rcc1 $18) 42... Re7 $16 {[%emt 0:00:23]} 43. Bd5 {[%emt 0:00:37] Threatens to win with c5. White is much more active.} Rd7 {[%emt 0:08:32] [#]} (43... Nb4 $14 44. Rc3 Nxd5 45. cxd5 Kd7) 44. Rcc1 $1 $18 {[%emt 0:02:25]} Nb4 {[%emt 0:06:19]} 45. Be6 {[%emt 0:06:02]} Rd8 {[%emt 0:00:31]} 46. Ra1 {[%emt 0:02:02]} Rxa1 {[%emt 0:00:23]} 47. Rxa1 {[%emt 0:00:03]} Nc2 {[%emt 0:01:46]} (47... Ke7 {was called for.}) 48. Rc1 {[%emt 0:03:41]} Nb4 {[%emt 0:01:15]} 49. Kg2 {[%emt 0:00:59]} Ke7 {[%emt 0:01:32]} 50. Bd5 {[%emt 0:00:07]} Nxd5 {[%emt 0:00:58]} 51. cxd5 {[%emt 0:00:23][%mdl 4096] Endgame KRB-KRB} Rf8 {[%emt 0:02:40]} 52. Rh1 {[%emt 0:01:42]} Rc8 {[%emt 0:02:09]} 53. Kf3 {[%emt 0:01:04]} Rc4 {[%emt 0:02:57]} 54. h4 {[%emt 0:00:17][%cal Bh3h4,Bh4h5][%mdl 32]} g4+ {[%emt 0:00:51]} (54... gxh4 55. gxh4 Rc2) 55. Kxg4 {[%emt 0:00:04] Strongly threatening Rc1.} Rxe4+ {[%emt 0:00:04]} 56. Kf5 {[%emt 0:00:14]} Rc4 {[%emt 0:00:12]} 57. Rc1 {[%emt 0:00:14]} Rxc1 {[%emt 0:00:12]} 58. Bxc1 {[%emt 0:00:04]} Kf7 {[%emt 0:00:04]} 59. h5 {[%emt 0:00:05] Weighted Error Value: White=0.26 (precise) /Black=0.50} 1-0